Cogmind - Beta 14 @@@ ROGUE MODE // 2024.09.13 @ 01:40:10 Player: Noot Result: Destroyed by S-10 Pest with Light Assault Rifle Performance ------------- Evolutions (0) 0 Regions Visited (1) 200 Robots Destroyed (3) 15 Value Destroyed (134) 134 Prototype IDs (0) 0 Alien Tech Used (0) 0 Bonus (0) 0 TOTAL SCORE: 349 Bonus ------- None Cogmind --------- Core Integrity 0/250 Matter 320/400 Energy 140/140 System Corruption 0% Temperature Cool (0) Movement Hovering (570) Ox7 Location -10/Materials Parts ------- > --- POWER (1) -------- Light Deuterium Engine > --- PROPULSION (2) --- Combat Airjet > --- UTILITY (2) ------ Huge Storage Unit Medium Matter Pod > --- WEAPON (2) ------- Small Laser Mini Grenade Launcher > --- INVENTORY (25) --- Ion Engine Light Ion Engine Light Ion Engine Small Storage Unit Small Matter Pod (50) Improved Terrain Scanner Grenade Launcher Peak State ------------ > --- POWER ------------ Light Deuterium Engine > --- PROPULSION ------- Combat Airjet > --- UTILITY ---------- Huge Storage Unit Medium Matter Pod > --- WEAPON ----------- Small Laser Mini Grenade Launcher > --- INVENTORY -------- Ion Engine Light Ion Engine Light Ion Engine Small Storage Unit Small Matter Pod Improved Terrain Scanner Grenade Launcher [Rating: 13] Favorites ----------- Power Light Deuterium Engine Engine Light Deuterium Engine Propulsion Compact Wheel Leg Aluminum Leg Wheel Compact Wheel Hover Unit Combat Airjet Utility Small Storage Unit Storage Small Storage Unit Weapon Small Laser Energy Gun Small Laser Launcher Mini Grenade Launcher Build | -11 -10 ------- Run | Yrd Mat Slots Evolved . | . . Power . | . . Propulsion . | . . Utility . | . . Weapon . | . . Parts Attached 14 | 12 2 Power 2 | 2 . Engine 2 | 2 . Core . | . . Reactor . | . . Propulsion 5 | 4 1 Treads . | . . Leg 2 | 2 . Wheel 2 | 2 . Hover 1 | . 1 Flight . | . . Utility 3 | 2 1 Device . | . . Storage 3 | 2 1 Processor . | . . Hackware . | . . Protection . | . . Artifact . | . . Weapon 4 | 4 . Energy Gun 3 | 3 . Energy Cannon . | . . Ballistic Gun . | . . Ballistic Cannon . | . . Launcher 1 | 1 . Special Weapon . | . . Impact Weapon . | . . Slashing Weapon . | . . Piercing Weapon . | . . Special Melee Weapon . | . . Unidentified Prototypes . | . . Parts Lost 7 | 5 2 Power 1 | 1 . Propulsion 4 | 2 2 Utility . | . . Weapon 2 | 2 . Highest Loss Streak 3 | 3 1 To Critical Strikes . | . . Average Slot Usage (%) 85 | . 85 Engine 14 | . 14 Wheel 5 | . 5 Hover 8 | . 8 Storage 28 | . 28 Energy Gun 14 | . 14 Launcher 14 | . 14 Peak Build Rating 13 | 11 13 Average Rating 8 | 8 11 On Entrance 5 | . 11 Naked Turns . | . . Heaviest Build 89 | 15 89 Greatest Support 32 | 32 16 Greatest Overweight (x) 7 | 4 7 Average Overweight (x) . | . 1 Largest Inventory Capacity 25 | 8 25 Average Capacity 8 | 7 19 Most Carried 8 | 8 8 Average Carried 4 | 3 7 Final Capacity 25 | 8 25 Final Carried 8 | 8 7 Class Distribution -------------------- 100% | Scavenger-Mutant Dominant Class ---------------- Scavenger-Mutant | -10/Materials Resources | -11 -10 ----------- Run | Yrd Mat Matter Collected 350 | 350 . Remotely . | . . Salvage Created 88 | 26 62 Parts 1 | . 1 Haulers Intercepted . | . . Recyclers Shooed 1 | . 1 Parts Field Recycled . | . . Retrieved Matter . | . . Parts Self-Destructed . | . . Prevented . | . . Kills | -11 -10 ------- Run | Yrd Mat Combat Hostiles Destroyed 9 | 7 2 Guns 5 | 5 . AOE 4 | 2 2 Classes Destroyed 3 | 1 2 Watcher 1 | . 1 Grunt 2 | . 2 Assembled 7 | 7 . Best Kill Streak 2 | 2 2 Combat Bots Only 2 | 2 1 Max Kills in Single Turn 1 | 1 1 Gunslinging . | . . Exploded 1 | 1 1 Melee . | . . Uniques/NPCs Destroyed . | . . Combat | -11 -10 -------- Run | Yrd Mat Hostile Shots Fired 58 | 52 6 Missed 19 | 16 3 Damage Taken 897 | 729 168 Core 252 | 196 56 Absorbed by Shields . | . . Core Remaining (%) 21 | 21 . Volleys Fired 26 | 18 8 Largest 2 | 2 2 Hottest 90 | 90 70 Shots Fired 46 | 31 15 Gun 36 | 28 8 Cannon . | . . Launcher 10 | 3 7 Special . | . . Kinetic . | . . Thermal 34 | 26 8 Explosive 10 | 3 7 Electromagnetic 2 | 2 . Robot Hit Streak 4 | 4 2 Robot Miss Streak 5 | 5 2 Penetration Max . | . . Secondary Targets 1 | 1 . Max Gunslinging Chain 1 | 1 . Shots Hit Robots 15 | 14 1 Core Hits 16 | 10 6 Critical Kills . | . . Critical Parts Destroyed . | . . Critical Strikes 2 | 2 . Burn 2 | 2 . Melee Attacks . | . . Impact . | . . Slashing . | . . Piercing . | . . Sneak Attacks . | . . Combat Hostiles . | . . Follow-up Attacks . | . . Damage Inflicted 627 | 269 358 Guns 164 | 152 12 Cannons . | . . Explosions 463 | 117 346 Melee . | . . Ramming . | . . Kinetic . | . . Thermal 154 | 142 12 Explosive 463 | 117 346 Electromagnetic 10 | 10 . Impact . | . . Slashing . | . . Piercing . | . . Highest Corruption . | . . Average Corruption . | . . Corruption Purged . | . . Corruption Blocked . | . . Overload Shots . | . . Overflow Damage 68 | 26 42 Projectiles . | . . Explosions 68 | 26 42 Melee . | . . Knockbacks . | . . Impact . | . . Kinetic . | . . Secondary . | . . Self-Inflicted Damage 172 | 36 136 Shots 4 | 1 3 Rammed . | . . Targets Rammed . | . . Kicked . | . . Crushed . | . . Highest Temperature 120 | 120 50 Average Temperature 35 | 41 19 Received Heat Transfer 12 | . 12 Siege Activations . | . . Robots Corrupted . | . . Combat Hostiles . | . . Parts Fried . | . . Impact Corruptions . | . . Robots Melted . | . . Combat Hostiles . | . . Parts Melted . | . . Heat Transferred 569 | 544 25 Parts Sabotaged . | . . Parts Stolen . | . . Parts Stripped . | . . Power Chain Reactions . | . . Alert | -11 -10 ------- Run | Yrd Mat Peak Influence 194 | 15 194 Initial . | . . Average 4 | . 77 Maximum Alert Level . | . . Low Security (%) 100 | 100 100 Level 1 . | . . Level 2 . | . . Level 3 . | . . Level 4 . | . . Level 5 . | . . High Security . | . . Max Security . | . . Squads Dispatched 1 | . 1 Investigation . | . . Extermination . | . . Reinforcement 1 | . 1 Assault . | . . Garrison . | . . Intercept . | . . Searches Triggered . | . . Construction Impeded . | . . Haulers Reinforced . | . . Active Scanning Responses . | . . Cargo Convoy Interrupts . | . . Stealth | -11 -10 --------- Run | Yrd Mat Distress Signals . | . . Communications Jammed . | . . Distress Signals . | . . Times Spotted 12 | 8 4 Peak Tracking Total 3 | 3 2 Tactical Retreats . | . . Traps | -11 -10 ------- Run | Yrd Mat Traps Triggered . | . . Indirectly . | . . Trap Hack Attempts . | . . Triggered . | . . Disarmed . | . . Reprogrammed . | . . Reused . | . . Traps Extracted . | . . Installed . | . . Triggered . | . . Machines | -11 -10 ---------- Run | Yrd Mat Machines Disabled 5 | . 5 Max in Single Turn 2 | . 2 Machines Repaired . | . . Machines Dismantled . | . . Machines Sabotaged . | . . Overloaded Fab Kills . | . . Hacking | -11 -10 --------- Run | Yrd Mat Machines Accessed . | . . Terminals . | . . Fabricators . | . . Repair Stations . | . . Recycling Units . | . . Scanalyzers . | . . Garrison Access . | . . Total Hacks . | . . Successful . | . . Failed . | . . Catastrophic . | . . Database Lockouts . | . . Manual . | . . Terminals . | . . Fabricators . | . . Repair Stations . | . . Recycling Units . | . . Scanalyzers . | . . Garrison Access . | . . Terminal Hacks . | . . Fabricator Hacks . | . . Repair Station Hacks . | . . Recycling Unit Hacks . | . . Scanalyzer . | . . Garrison Access Hacks . | . . Unauthorized Hacks . | . . Terminals . | . . Fabricators . | . . Repair Stations . | . . Recycling Units . | . . Scanalyzers . | . . Garrison Access . | . . Data Cores Recovered . | . . Used . | . . Hacking Detections . | . . Full Trace Events . | . . Feedback Events . | . . Feedback Blocked . | . . Robot Schematics Acquired . | . . Robots Built . | . . Authchips . | . . Time . | . . Total Robot Build Rating . | . . Part Schematics Acquired . | . . Parts Built . | . . Authchips . | . . Time . | . . Total Part Build Rating . | . . Parts Repaired . | . . Time . | . . Parts Recycled . | . . Recycled Matter . | . . Retrieved Matter . | . . Retrieved Components . | . . Parts Scanalyzed . | . . Part Schematics Acquired . | . . Parts Damaged . | . . Bothacking | -11 -10 ------------ Run | Yrd Mat Used RIF Installer . | . . Robots Hacked . | . . Non-combat . | . . Combat . | . . Robot Hacks Applied . | . . Relay Couplers Released . | . . Fabnet Peak Effective % . | . . Robots Rewired . | . . Allies Hacked . | . . Hacks Repelled . | . . Allies | -11 -10 -------- Run | Yrd Mat Total Allies . | . . Largest Group . | . . Highest-Rated Group . | . . Highest-Rated Ally . | . . Total Orders . | . . Ally Attacks . | . . Total Damage . | . . Kills . | . . Allies Corrupted . | . . Allies Melted . | . . Intel | -11 -10 ------- Run | Yrd Mat Robot Analysis Total . | . . Derelict Logs Recovered . | . . Drone Launches . | . . Drone Recoveries . | . . Exploration | -11 -10 ------------- Run | Yrd Mat Turns Passed 3412 | 3251 161 Spaces Moved 1191 | 1127 64 Core 36 | 36 . Treads . | . . Legs 262 | 262 . Wheels 878 | 829 49 Hover 15 | . 15 Flight . | . . Fastest Speed 50 | 50 100 Average Speed 115 | 109 211 Slowest Speed 570 | 250 570 Overloaded Moves . | . . Propulsion Burnouts . | . . Robots Hopped . | . . Cave-ins Triggered . | . . Exploration Rate (%) 43 | 70 17 Regions Visited 1 Branch Regions . Pre-discovered Areas . | . . Known Exits Taken . | . . Unknown Exits Taken 1 | 1 . Scrap Searched . | . . Spaces Dug 3 | . 3 Terrain Destroyed 75 | 19 56 Melee . | . . Projectile . | . . AOE 75 | 19 56 Terrain Rammed . | . . Walls Destroyed . | . . Machines Disabled . | . . Actions | -11 -10 --------- Run | Yrd Mat Total 3186 | 3109 77 Wait 1939 | 1939 . Move 1190 | 1126 64 Hop . | . . Pick Up 14 | 13 1 Fast Attach 8 | 8 . Attach 5 | 4 1 Detach . | . . Swap 1 | . 1 Drop 3 | 1 2 Fire 26 | 18 8 Melee . | . . Ram . | . . Kick . | . . Crush . | . . Escape Stasis . | . . Rewire . | . . Trap . | . . Miscellaneous . | . . Route ------- -11/Scrapyard -10/Materials History --------- Turn | Location | Event 9 | -11/Scrapyard | Discovered new exit (range 16) 1125 | -11/Scrapyard | Assembled infested the area 1610 | -11/Scrapyard | Core integrity fell below 50% 1624 | -11/Scrapyard | Lost 3 parts (1p1n1w) 3252 | -11/Scrapyard | Entered Materials 3253 | -10/Materials | Build established: Scavenger-Mutant 3315 | -10/Materials | Core integrity fell below 20% 3413 | -10/Materials | Destroyed by S-10 Pest with Light Assault Rifle Last Messages --------------- 03272_ Dropped Wheel. 03276_ Acquired Grenade Launcher. 03304_ Dropped Sml. Storage Unit. 03310_ G-34 Mercenary destroyed. 03310_ Recycling Unit disabled. 03311_ The unstable cave ceiling collapses. 03314_ Nuclear Reactor explodes. 03314_ Com. Wheel destroyed. 03314_ Destroyed Com. Wheel. 03314_ Destroyed Lgt. Ion Engine. 03322_ The unstable cave ceiling collapses. 03354_ R-06 Scavenger collects Sml. Storage Unit. 03398_ Destroyed Com. Wheel. 03401_ G-34 Mercenary destroyed. 03404_ Material Compactor disabled. 03406_ Nuclear Reactor explodes. 03406_ Processing Tank disabled. 03407_ W-16 Scout destroyed. 03411_ The unstable cave ceiling collapses. Map ----- +----------------------------------------------------+ | ???????????????????????????????????????????? | | ???????????????????????????????????????????? | | ???????????????????????????????????????????? | | ???????????????????????????????????????????? | | ???????????????????????????????????????????? | | ???????????????????????????????????????????? | | ???????????????????????????????????????????? | | ???????????????????????????????????????????? | | ???????????????????????????????????????????? | | ???????????????????????????????????????????? | | ????????????????????????+??????????????????? | | ???????????????????????? ??????????????????? | | ??????????????????????##a##?####+??????????? | | ???????????????? ????## # ????????? | | ???????????????? ???# a ????????? | | ????????????????? ??# " ????????? | | ????????????? ??? ### ""????????? | | ??????????????#k### ""????????? | | ??????????????? % "?????????? | | ?????????????? ??????????? | | ??????????????? " ???????????? | | ??????????????" " ! ????????????? | | ?????????????"" "" #?????????????? | | ?????????????"" " ##########?????? | | ?????????? """ "" ?????? | | ?????????? @ """ """??????? | | ????????? s ! """ """??????? | | ?????????? """ """ ?????? | | ???????????########## #??? | | ??????????????????### # # #######?????? | | ??????????????????# #??????????? | | ??????????????????# " #??????????? | | ??????????????????# " #??????????? | | ??????????????????# " #??????????? | | ??????????????????# ##??????????? | | ?????????+############ # # #???????????? | | ???????? ##???????????? | | ???????? #????????????? | | ???????? #????????????? | | ??????????#+########### # # ####??????????? | | ??????????????????# #??????????? | | ??????????????????# #??????????? | | ??????????????????# #??????????? | | ??????????????????# #??????????? | | ??????????????????# #??????????? | | ??????????????????# #??????????? | | ??????????????????###############??????????? | | | | | | | +----------------------------------------------------+ Best States ------------- Heat Dissipation 25 Energy Generation 14 Energy Capacity 250 Matter Stores 400 Matter Capacity 400 Sight Range 16 Terrain Scan Density 10 Evasion (%) 55 Item Schematics ----------------- None Robot Schematics ------------------ None Fabricated ------------ Nothing Alien Tech Used ----------------- None Achievements -------------- Curiosity Killed The Cat Challenges ------------ None Game ------ Seed BehemothSpikedTelecube Manual? 0 Play Time 00:14:40 Cumulative 5.2 hours Start 2024.09.13 @ 01:27:00 End 2024.09.13 @ 01:40:10 Sessions 3 Manual Loads 0 Difficulty Rogue Special Mode None Game No. 4 Rogue 4 Adventurer 0 Explorer 0 Win Type - Total 0 Types 0/0/0/0/0/0/0/0/0 Lore% 1 Gallery% 9 Achievement% 12 Wizard Run 0 Options --------- Layout 1 ASCII 0 Keyboard 1 Movement Vi Keybinds 0 Fullscreen 1 Font 24/Smallcaps Map View 50x35 Zoom Use 11% Tactical HUD 1 Map Filters NONE Filters NONE Steam 1 RUN: f5598a77-303a-40aa-8d99-9cbc576f6828